Cogmind - Beta 16.1 @@@ ROGUE MODE // 2026.04.24 @ 14:41:28 Player: H3-MLN Result: Destroyed by LU-LWH(R) with Subdweller Laser Performance ------------- Evolutions (0) 0 Regions Visited (3) 600 Robots Destroyed (15) 75 Value Destroyed (260) 260 Prototype IDs (0) 0 Alien Tech Used (0) 0 Bonus (90) 90 TOTAL SCORE: 1025 Bonus ------- Follower Combat Kills 90 Cogmind --------- Core Integrity 0/250 Matter 221/300 Energy 100/100 System Corruption 0% Temperature Cool (6) Movement Rolling (100) Location -10/Subcaves Parts ------- > --- POWER (1) -------- (None) > --- PROPULSION (2) --- Compact Wheel > --- UTILITY (2) ------ Medium Storage Unit > --- WEAPON (2) ------- Light Assault Rifle Heavy Mace > --- INVENTORY (10) --- Wheel Compact Wheel Subdweller Monowheel Improved Trap Extractor (0/6) Decoy Drone Bay Improved Datajack Peak State ------------ > --- POWER ------------ Nuclear Core > --- PROPULSION ------- Light Treads Subdweller Monowheel > --- UTILITY ---------- Medium Storage Unit Improved Terrain Scanner > --- WEAPON ----------- Subdweller Laser Improved Grenade Launcher > --- INVENTORY -------- Light Treads Wheel Compact Wheel Compact Wheel Improved Trap Extractor Decoy Drone Bay Light Assault Rifle Improved Datajack Heavy Mace [Rating: 17] Favorites ----------- Power Nuclear Core Engine Ion Engine Power Core Nuclear Core Propulsion Light Treads Treads Light Treads Wheel Compact Wheel Utility Medium Storage Unit Device Seismic Detector Storage Medium Storage Unit Weapon Light Assault Rifle Energy Gun Medium Laser Ballistic Gun Light Assault Rifle Launcher Improved Grenade Launcher Impact Weapon Heavy Mace Build | -11 -10 -10 -10 ------- Run | Yrd Mat Min Sub Slots Evolved . | . . . . Power . | . . . . Propulsion . | . . . . Utility . | . . . . Weapon . | . . . . Parts Attached 18 | 9 . 3 6 Power 2 | 1 . 1 . Engine 1 | 1 . . . Core 1 | . . 1 . Reactor . | . . . . Propulsion 5 | 2 . . 3 Treads 2 | 1 . . 1 Leg . | . . . . Wheel 3 | 1 . . 2 Hover . | . . . . Flight . | . . . . Utility 4 | 3 . 1 . Device 2 | 2 . . . Storage 2 | 1 . 1 . Processor . | . . . . Hackware . | . . . . Protection . | . . . . Artifact . | . . . . Weapon 7 | 3 . 1 3 Energy Gun 3 | 2 . . 1 Energy Cannon . | . . . . Ballistic Gun 1 | 1 . . . Ballistic Cannon . | . . . . Launcher 2 | . . 1 1 Special Weapon . | . . . . Impact Weapon 1 | . . . 1 Slashing Weapon . | . . . . Piercing Weapon . | . . . . Special Melee Weapon . | . . . . Unidentified Prototypes . | . . . . Parts Lost 7 | . . . 7 Power 1 | . . . 1 Propulsion 2 | . . . 2 Utility 2 | . . . 2 Weapon 2 | . . . 2 Highest Loss Streak 6 | . . . 6 To Critical Strikes . | . . . . Average Backups 8 | 3 7 8 8 Power . | . 1 . . Propulsion 3 | 1 3 3 3 Utility 1 | . 1 2 2 Weapon 2 | 1 2 2 1 Tool/Special . | . . . . Unused Backups 12 | 1 1 5 5 Power 1 | . . 1 . Propulsion 1 | . . . 1 Utility 6 | 1 . 2 3 Weapon 3 | . 1 2 . Tool/Special 1 | . . . 1 Average Slot Usage (%) 99 | . 100 100 98 Engine 5 | . 14 7 . Core 8 | . . 6 14 Treads 14 | . 14 14 14 Wheel 13 | . 14 14 13 Device 13 | . 14 14 12 Storage 14 | . 14 14 14 Energy Gun 13 | . 14 13 12 Ballistic Gun 13 | . 14 14 13 Peak Build Rating 17 | 9 8 12 17 Average Rating 11 | 6 7 9 15 On Entrance 6 | . 7 8 12 Avg Prop Armor Cover (%) 14 | 17 14 14 14 Naked Turns . | . . . . Heaviest Build 28 | 14 14 21 28 Greatest Support 20 | 16 16 16 20 Greatest Overweight (x) 1 | . . 1 1 Average Overweight (x) . | . . . 1 Largest Inventory Capacity 10 | 8 8 10 10 Average Capacity 9 | 6 8 9 10 Most Carried 10 | 7 8 10 10 Average Carried 8 | 3 7 9 9 Final Capacity 10 | 8 8 10 10 Final Carried 10 | 7 8 10 7 Class Distribution -------------------- 100% | Mutant Dominant Class ---------------- Mutant | -10/Materials Mutant | -10/Mines Mutant | -10/Subcaves Resources | -11 -10 -10 -10 ----------- Run | Yrd Mat Min Sub Matter Collected 526 | 308 . 84 134 Remotely . | . . . . Salvage Created 303 | 179 . 28 96 Parts 24 | 16 . 4 4 Haulers Intercepted . | . . . . Recyclers Shooed . | . . . . Parts Field Recycled . | . . . . Retrieved Matter . | . . . . Parts Self-Destructed 8 | . . . 8 Prevented . | . . . . Parts Restored . | . . . . Kills | -11 -10 -10 -10 ------- Run | Yrd Mat Min Sub Combat Hostiles Destroyed 8 | . . 3 5 Guns 3 | . . 1 2 AOE 5 | . . 2 3 Classes Destroyed 5 | 3 . 1 1 Worker 3 | 2 . 1 . Tunneler 3 | 3 . . . Recycler 1 | 1 . . . Swarmer 3 | . . 3 . Subdweller 5 | . . . 5 Best Kill Streak 6 | 6 . 4 2 Combat Bots Only 3 | . . 3 2 Max Kills in Single Turn 2 | 1 . 2 2 Gunslinging . | . . . . Exploded 2 | . . 2 2 Melee . | . . . . Uniques/NPCs Destroyed . | . . . . Combat | -11 -10 -10 -10 -------- Run | Yrd Mat Min Sub Hostile Shots Fired 72 | . . 17 55 Missed 26 | . . 9 17 Hits 46 | . . 8 38 Projectile 46 | . . 8 38 Critical Strikes 2 | . . . 2 Damage Taken 905 | . . 95 810 Core 258 | . . 13 245 Absorbed by Shields . | . . . . Core Remaining (%) 100 | 100 . . . Volleys Fired 55 | 18 . 15 22 Largest 2 | 2 . 2 2 Hottest 80 | 70 . 70 80 Shots Fired 95 | 35 . 27 33 Gun 85 | 35 . 24 26 Cannon . | . . . . Launcher 10 | . . 3 7 Special . | . . . . Kinetic 41 | 18 . 12 11 Thermal 41 | 14 . 12 15 Explosive 10 | . . 3 7 Electromagnetic 3 | 3 . . . Robot Hit Streak 11 | 5 . 11 10 Robot Miss Streak 2 | 2 . 1 2 Penetration Max . | . . . . Secondary Targets . | . . . . Shots Hit Robots 69 | 21 . 19 29 Core Hits 29 | 9 . 10 10 Critical Kills . | . . . . Critical Parts Destroyed . | . . . . Critical Strikes 4 | 2 . 1 1 Burn 3 | 2 . 1 . Smash 1 | . . . 1 Melee Attacks 12 | . . . 12 Impact 12 | . . . 12 Slashing . | . . . . Piercing . | . . . . Sneak Attacks . | . . . . Combat Hostiles . | . . . . Follow-up Attacks . | . . . . Damage Inflicted 1830 | 223 . 401 1206 Guns 634 | 223 . 210 201 Cannons . | . . . . Explosions 773 | . . 191 582 Melee 423 | . . . 423 Ramming . | . . . . Kinetic 219 | 70 . 84 65 Thermal 390 | 128 . 126 136 Explosive 773 | . . 191 582 Electromagnetic 25 | 25 . . . Impact 423 | . . . 423 Slashing . | . . . . Piercing . | . . . . Highest Corruption . | . . . . Average Corruption . | . . . . Corruption Purged . | . . . . Corruption Blocked . | . . . . Overload Shots . | . . . . Overflow Damage 51 | . . . 51 Projectiles . | . . . . Explosions . | . . . . Melee 51 | . . . 51 Knockbacks 5 | . . . 5 Impact 5 | . . . 5 Kinetic . | . . . . Secondary . | . . . . Self-Inflicted Damage . | . . . . Shots . | . . . . Rammed . | . . . . Targets Rammed . | . . . . Kicked . | . . . . Crushed . | . . . . Highest Temperature 160 | 160 . 102 8 Average Temperature 53 | 72 . 43 3 Received Heat Transfer 168 | . . 42 126 Siege Activations . | . . . . Martial Activations . | . . . . Shielding Activations . | . . . . Robots Disrupted . | . . . . Combat Hostiles . | . . . . Robots Corrupted . | . . . . Combat Hostiles . | . . . . Parts Fried . | . . . . Impact Corruptions 3 | . . . 3 Robots Melted . | . . . . Combat Hostiles . | . . . . Parts Melted 2 | . . 1 1 Heat Transferred 1198 | 518 . 444 236 Parts Sabotaged . | . . . . Parts Stolen . | . . . . Parts Stripped . | . . . . Power Chain Reactions . | . . . . Alert | -11 -10 -10 -10 ------- Run | Yrd Mat Min Sub Maximum Alert Level . | . . . . Low Security (%) 100 | 100 100 100 . Level 1 . | . . . . Level 2 . | . . . . Level 3 . | . . . . Level 4 . | . . . . Level 5 . | . . . . High Security . | . . . . Max Security . | . . . . Peak Influence 81 | 5 . 81 . Initial . | . . . . Average 9 | 1 . 12 . Influence Increases 195 | 30 7 158 . Destroy 0b10 Robot/C 100 | . . 100 . Destroy 0b10 Robot/NC 35 | 30 . 5 . Destroy Leader 20 | . . 20 . Allied During Kill 15 | . . 15 . Successful Hack 7 | . 7 . . Destroy Structure 18 | . . 18 . Influence Decreases 195 | 30 7 158 . Time Decay 175 | 30 7 138 . Lost Ally 20 | . . 20 . Squads Dispatched . | . . . . Investigation . | . . . . Extermination . | . . . . Reinforcement . | . . . . Assault . | . . . . Garrison . | . . . . Intercept . | . . . . Searches Triggered . | . . . . Construction Impeded . | . . . . Haulers Reinforced . | . . . . Active Scanning Responses . | . . . . Cargo Convoy Interrupts . | . . . . Stealth | -11 -10 -10 -10 --------- Run | Yrd Mat Min Sub Distress Signals . | . . . . Communications Jammed . | . . . . Distress Signals . | . . . . Times Spotted 16 | . 3 5 8 Peak Tracking Total 3 | . 2 3 2 Tactical Retreats . | . . . . Traps | -11 -10 -10 -10 ------- Run | Yrd Mat Min Sub Traps Triggered . | . . . . Indirectly . | . . . . Trap Hack Attempts . | . . . . Triggered . | . . . . Disarmed . | . . . . Reprogrammed . | . . . . Reused . | . . . . Traps Extracted . | . . . . Installed . | . . . . Triggered . | . . . . Machines | -11 -10 -10 -10 ---------- Run | Yrd Mat Min Sub Machines Disabled . | . . . . Max in Single Turn . | . . . . Machines Repaired . | . . . . Machines Dismantled . | . . . . Machines Sabotaged . | . . . . Overloaded Fab Kills . | . . . . Hacking | -11 -10 -10 -10 --------- Run | Yrd Mat Min Sub Machines Accessed 5 | . 3 2 . Terminals 3 | . 3 . . Fabricators . | . . . . Repair Stations . | . . . . Recycling Units . | . . . . Scanalyzers . | . . . . Garrison Access . | . . . . Total Hacks 9 | . 7 2 . Successful 3 | . 1 2 . Failed 6 | . 6 . . Catastrophic 3 | . 3 . . Database Lockouts . | . . . . Manual 7 | . 7 . . Terminals 7 | . 7 . . Fabricators . | . . . . Repair Stations . | . . . . Recycling Units . | . . . . Scanalyzers . | . . . . Garrison Access . | . . . . Terminal Hacks 3 | . 1 2 . Part Schematic 1 | . 1 . . Open Door 2 | . . 2 . Fabricator Hacks . | . . . . Repair Station Hacks . | . . . . Recycling Unit Hacks . | . . . . Scanalyzer . | . . . . Garrison Access Hacks . | . . . . Unauthorized Hacks . | . . . . Terminals . | . . . . Fabricators . | . . . . Repair Stations . | . . . . Recycling Units . | . . . . Scanalyzers . | . . . . Garrison Access . | . . . . Data Cores Recovered . | . . . . Used . | . . . . Hacking Detections 3 | . 3 . . Full Trace Events . | . . . . Feedback Events . | . . . . Feedback Blocked . | . . . . Robot Schematics Acquired . | . . . . Robots Built . | . . . . Authchips . | . . . . Time . | . . . . Total Robot Build Rating . | . . . . Part Schematics Acquired 1 | . 1 . . Parts Built . | . . . . Authchips . | . . . . Time . | . . . . Total Part Build Rating . | . . . . Part Studies Acquired . | . . . . Parts Repaired . | . . . . Time . | . . . . Parts Recycled . | . . . . Recycled Matter . | . . . . Retrieved Matter . | . . . . Retrieved Components . | . . . . Parts Scanalyzed . | . . . . Part Schematics Acquired . | . . . . Parts Damaged . | . . . . Bothacking | -11 -10 -10 -10 ------------ Run | Yrd Mat Min Sub Used RIF Installer . | . . . . Robots Hacked . | . . . . Non-combat . | . . . . Combat . | . . . . Robot Hacks Applied . | . . . . Relay Couplers Released . | . . . . Fabnet Peak Effective % . | . . . . Robots Rewired . | . . . . Allies Hacked . | . . . . Hacks Repelled . | . . . . Allies | -11 -10 -10 -10 -------- Run | Yrd Mat Min Sub Total Allies 3 | . . 3 . Largest Group 3 | . . 3 2 Highest-Rated Group 40 | . . 40 24 Highest-Rated Ally 16 | . . 16 16 Total Orders 2 | . . 2 . STAY 1 | . . 1 . FOLLOW 1 | . . 1 . Ally Attacks 40 | . . 24 16 Total Damage 362 | . . 169 193 Kills 3 | . . 2 1 Allies Corrupted . | . . . . Allies Melted 1 | . . . 1 Intel | -11 -10 -10 -10 ------- Run | Yrd Mat Min Sub Active Infowar (turns) 1920 | 81 178 1044 617 Terrain 630 | 69 . . 561 Seismic 1290 | 12 178 1044 56 Robot Analysis Total . | . . . . Derelict Logs Recovered 1 | . . 1 . Drone Launches . | . . . . Drone Recoveries . | . . . . Exploration | -11 -10 -10 -10 ------------- Run | Yrd Mat Min Sub Turns Passed 2038 | 146 178 1044 670 Spaces Moved 1135 | 78 178 666 213 Core 6 | 6 . . . Treads . | . . . . Legs . | . . . . Wheels 1129 | 72 178 666 213 Hover . | . . . . Flight . | . . . . Fastest Speed 50 | 50 100 100 115 Average Speed 110 | 96 100 111 119 Slowest Speed 120 | 100 100 115 120 Overloaded Moves . | . . . . Propulsion Burnouts . | . . . . Robots Hopped . | . . . . Potential Cave-ins . | . . . . Cave-ins Triggered . | . . . . Exploration Rate (%) 35 | 4 32 93 13 Regions Visited 3 Branch Regions 2 Pre-discovered Areas . | . . . . Known Exits Taken . | . . . . Unknown Exits Taken 3 | 1 1 1 . Scrap Searched 1 | . . 1 . Spaces Dug 28 | . . 25 3 Terrain Destroyed 59 | . . 25 34 Melee . | . . . . Projectile 3 | . . . 3 AOE 56 | . . 25 31 Terrain Rammed . | . . . . Walls Destroyed . | . . . . Machines Disabled . | . . . . Actions | -11 -10 -10 -10 --------- Run | Yrd Mat Min Sub Total 1813 | 114 180 944 575 Wait 554 | . . 243 311 Move 1132 | 77 177 665 213 Hop . | . . . . Pick Up 20 | 9 2 8 1 Fast Attach 7 | 6 . . 1 Attach 5 | 1 . . 4 Detach . | . . . . Swap 15 | 2 . 4 9 Drop 13 | 1 1 9 2 Fire 55 | 18 . 15 22 Melee 12 | . . . 12 Ram . | . . . . Kick . | . . . . Crush . | . . . . Escape Stasis . | . . . . Rewire . | . . . . Trap . | . . . . Miscellaneous . | . . . . Route ------- -11/Scrapyard -10/Materials -10/Mines (discovered 2 exits: [*Mat] / [*Sub]) -10/Subcaves History --------- Turn | Location | Event 8 | -11/Scrapyard | Discovered new exit (range 16) 147 | -11/Scrapyard | Entered Materials 237 | -10/Materials | Discovered new exit (range 13) 308 | -10/Materials | Build established: Mutant 325 | -10/Materials | Entered Mines 326 | -10/Mines | Assisted by bots powering up and referring to "LRC-V3" 401 | -10/Mines | Discovered new exit (range 12) 576 | -10/Mines | Received a Rocket Launcher from a helpful Derelict 640 | -10/Mines | Learned Materials terminal intel 814 | -10/Mines | Found the Drone Emporium 822 | -10/Mines | Found Prototype Device 880 | -10/Mines | Met a Derelict who couldn't figure out how to use a Trap Extractor 1197 | -10/Mines | Discovered new exit (range 6) 1369 | -10/Mines | Entered Subcaves 1369 | -10/Subcaves | Accompanied by 2 allies 1370 | -10/Subcaves | Approached by a straggling Scientist 1947 | -10/Subcaves | Core integrity fell below 50% 1993 | -10/Subcaves | Ambushed by Subdweller buried in earth 2018 | -10/Subcaves | Core integrity fell below 20% 2039 | -10/Subcaves | Destroyed by LU-LWH(R) with Subdweller Laser Last Messages --------------- 01993_ L3-2HE(R) destroyed. 01994_ LU-LWH(R): "THANKSYOU!" 01995_ Imp. Terrain Scanner destroyed. 01997_ The unstable cave ceiling collapses. 01997_ Imp. Grenade Launcher destroyed. 01999_ Sub. Laser destroyed. 02015_ F4-N5S(R) knocked back. 02024_ Destroyed Disposable Heat Sink. 02024_ F4-N5S(R) system corrupted by crushing effect. 02024_ F4-N5S(R) knocked back. 02026_ The unstable cave ceiling collapses. 02027_ Destroyed Sub. Monowheel. 02027_ LU-LWH(R) system corrupted by crushing effect. 02027_ LU-LWH(R) knocked back. 02029_ Lgt. Treads destroyed. 02030_ F4-N5S(R) suffers critical hit (Smash). 02032_ The unstable cave ceiling collapses. 02033_ Nuclear Core destroyed. 02035_ Destroyed Sub. Optics. 02035_ F4-N5S(R) system corrupted by crushing effect. Map ----- +----------------------------------------------------+ | | | | | ?????????????????????????????????????????????????? | | ?????????????????????????????????????????????????? | | ????????????????#????????????????????????????????? | | ?????????????#???????????????????????????????????? | | ???????????????????#?????????????????????????????? | | ????#???????????????????#????????????????????????? | | ????????#??????##????????????????????????????????? | | ?????????????????????????????????????????????????? | | ?????????????????????????????????????????????????? | | ???????????#??????##??#??????????????????????????? | | ??????????????????????#??????????????????????????? | | ???????????????????????#??#??????????????????????? | | ?????????????????????????????????????????????????? | | ?????????????????????#???????????????????????????? | | ?###????#?#?#?????????####???????????????????????? | | ## #?????????########## ##??????????????????????? | | # ###????#####& "## ##??#??????????????????? | | # ####### &%"" " ##???????????#??????????? | | # # !"" " ##???????????????????????? | | ""# " #????????????????????????? | | ""## ###???? ##???????????????? | | = ## ##### #### # #?????????????? | | %* ###??# #; #?????????????? | | """" #???# @ #?????????????? | | "" R ##????????????? | | ## "" ####R %! # #????????????? | | ## "" #### ##??# # ] #????????????? | | # """"## ##??# #???# # # ##????????????? | | ## ""##? #??## ##???# # ? #?????????????? | | ?######?? ###??# ##????# ?# # ##?????????????? | | ?????????? ????##?????? ### ? #?????????????? | | ???????#?? #???????#?#??#??? ? $#????????????? | | ????????? ?????? ???????#???## ? #?????????????? | | ???????????? ???? ????#??????????? #?????????????? | | ??????????????? ???????????????????#?????????????? | | ?????????????????????#???????????????????????????? | | ?????????????????????????????????????????????????? | | ?????????????????????????????????????????????????? | | ?????????????????????????????????????????????????? | | ?????????????????????????????????????????????????? | | ?????????????????????????????????????????????????? | | ?????????????????????????????????????????????????? | | ?????????????????????????????????????????????????? | | ?????????????????????????????????????????????????? | | ?????????????????????????????????????????????????? | | ?????????????????????????????????????????????????? | | ?????????????????????????????????????????????????? | | ?????????????????????????????????????????????????? | +----------------------------------------------------+ Best States ------------- Heat Dissipation 25 Energy Generation 14 Energy Capacity 250 Matter Stores 300 Matter Capacity 300 Sight Range 16 Terrain Scan Range 16 Terrain Scan Density 10 Evasion (%) 40 Recoil Reduction 2 Item Schematics ----------------- Huge Storage Unit | -10/Materials | Hacked Robot Schematics ------------------ None Fabricated ------------ Nothing Repaired ---------- Nothing Studied --------- None Alien Tech Used ----------------- None Achievements -------------- None Challenges ------------ None Game ------ Seed InsulationMiniLauncher Manual? 0 Play Time 00:18:08 Cumulative 1454.5 hours Start 2026.04.24 @ 02:52:40 End 2026.04.24 @ 14:41:28 Sessions 2 Manual Loads 0 Difficulty Rogue Special Mode None Game No. 475 Rogue 468 Adventurer 4 Explorer 3 Win Type - Total 44 Types 20/5/2/4/1/3/4/1/2/2 Lore% 97 Gallery% 95 Achievement% 88 Wizard Run 0 Options --------- Layout 0 ASCII 0 Keyboard 0 Movement Numpad Keybinds 0 Fullscreen 2 Font 18/Terminus Map View 76x50 Zoom Use 0% Tactical HUD 1 Map Filters NONE Filters NONE Steam 1 RUN: a0f766fe-9613-4482-bf2b-a3b6c2ee6937